fUSD/lending_fUSD_20240319
["ID","MTS","AMOUNT","RATE_DAILY","PERIOD"]
[319524865,1710827443213,-151.031913,0.00051548,69]
[319524867,1710827443223,-562.98,0.00051704,120]
[319524868,1710827443233,-151.031913,0.00051748,75]
[319524869,1710827443243,-200.0,0.0005176,30]
[319524870,1710827443253,-800.0,0.0005176,30]
[319524871,1710827443264,-200.0,0.0005176,30]
[319524872,1710827443273,-351.0,0.00051837,28]
[319524873,1710827443283,-153.0,0.00051918,60]
[319524874,1710827443293,-157.031913,0.00051948,72]
[319524875,1710827443302,-1000.0,0.00051999,2]
[319524876,1710827443312,-3486.98064252,0.00052088,29]
[319524877,1710827443321,-157.031913,0.00052148,68]
[319524878,1710827443330,-1000.0,0.00052199,2]
[319524879,1710827443340,-153.0,0.00052328,120]
[319524880,1710827443349,-151.031913,0.00052348,67]
[319524881,1710827443359,-473.04417623,0.000524,13]
[319524882,1710827443368,-352.40750607,0.00052467,14]
[319524883,1710827443378,-251.0,0.0005249,74]
[319524885,1710827443386,-220.0,0.000525,30]
[319524886,1710827443395,-349.0,0.000525,30]
[319524887,1710827443405,-1000.0,0.000525,30]
[319524888,1710827443414,-157.031913,0.00052548,65]
[319524889,1710827443423,-151.3,0.00052577,2]
[319524890,1710827443432,-1000.0,0.00052599,2]
[319524891,1710827443442,-152.0,0.00052651,4]
[319524892,1710827443454,-3486.98064252,0.00052682,30]
[319524893,1710827443463,-153.0,0.00052739,120]
[319524894,1710827443472,-151.031913,0.00052748,76]
[319524895,1710827443482,-470.35236452,0.000529,120]
[319524896,1710827443491,-150.94,0.00052914,2]
[319524897,1710827443501,-150.94,0.00052914,2]
[319524898,1710827443511,-151.0,0.00052924,120]
[319524899,1710827443520,-151.0,0.00052924,120]
[319524900,1710827443530,-151.0,0.00052924,120]
[319524901,1710827443540,-151.0,0.00052924,120]
[319524902,1710827443550,-151.0,0.00052924,120]
[319524903,1710827443560,-151.0,0.00052924,30]
[319524904,1710827443570,-262.063204,0.00052924,30]
[319524905,1710827443580,-151.0,0.00052924,120]
[319524906,1710827443589,-151.0,0.00052924,120]
[319524907,1710827443599,-151.0,0.00052924,120]
[319524908,1710827443608,-151.0,0.00052924,120]
[319524909,1710827443617,-151.0,0.00052924,120]
[319524910,1710827443627,-1086.575255,0.00052924,120]
[319524911,1710827443636,-1086.575255,0.00052924,120]
[319524912,1710827443645,-151.0,0.00052924,120]
[319524913,1710827443654,-259229.32374855,0.00052924,120]
[319524914,1710827443664,-351.0,0.0005294,28]
[319524915,1710827443673,-157.031913,0.00052948,75]
[319524916,1710827443682,-190.43357783,0.00052995,3]
[319524917,1710827443692,-500.0,0.00053,120]
[319524918,1710827443704,-436.0,0.00053,120]
[319524919,1710827443713,-151.0,0.00053,120]
[319524920,1710827443723,-157.031913,0.00053048,67]
[319524921,1710827443732,-1500.0,0.00053075,7]
[319524922,1710827443742,-150.0,0.00053079,7]
[319524923,1710827443755,-800.0,0.00053102,30]
[319524924,1710827443764,-200.0,0.00053102,30]
[319524925,1710827443773,-157.031913,0.00053148,70]
[319524926,1710827443782,-500.0,0.0005315,90]
[319524927,1710827443791,-153.0,0.0005315,120]
[319524928,1710827443802,-1500.0,0.00053154,7]
[319524929,1710827443811,-61674.26262,0.00053163,60]
[319524930,1710827443821,-420.14889,0.00053163,120]
[319524931,1710827443831,-420.14889,0.00053163,120]
[319524932,1710827443840,-151.0,0.00053163,120]
[319524933,1710827443849,-298.140121,0.00053163,120]
[319524934,1710827443859,-298.140121,0.00053163,120]
[319524935,1710827443868,-151.0,0.00053163,120]
[319524936,1710827443878,-152.080365,0.00053163,5]
[319524937,1710827443887,-151.0,0.00053163,120]
[319524938,1710827443897,-150.0,0.00053195,7]
[319524939,1710827443906,-151.031913,0.00053248,73]
[319524940,1710827443917,-722.1204,0.00053263,2]
[319524941,1710827443927,-500.0,0.00053263,2]
[319524942,1710827443937,-500.0,0.00053263,2]
[319524943,1710827443947,-500.0,0.00053263,2]
[319524944,1710827443961,-500.0,0.00053263,2]
[319524945,1710827443971,-500.0,0.00053263,2]
[319524946,1710827443981,-535.9969,0.00053263,2]
[319524947,1710827443991,-150.0,0.00053288,7]
[319524948,1710827444000,-151.031913,0.00053348,77]
[319524949,1710827444010,-150.0,0.00053353,7]
[319524950,1710827444019,-150.0,0.00053354,7]
[319524951,1710827444029,-295.8175762,0.0005339,7]
[319524952,1710827444038,-150.0,0.00053397,7]
[319524953,1710827444047,-150.0,0.00053409,7]
[319524954,1710827444059,-151.0,0.00053414,120]
[319524955,1710827444068,-151.0,0.00053414,120]
[319524956,1710827444078,-151.0,0.00053414,120]
[319524957,1710827444088,-151.63272,0.00053414,120]
[319524958,1710827444097,-151.604833,0.00053414,120]
[319524959,1710827444106,-151.0,0.00053414,7]
[319524960,1710827444116,-155.448723,0.00053414,120]
[319524961,1710827444125,-151.0,0.00053414,120]
[319524962,1710827444135,-151.0,0.00053414,120]
[319524963,1710827444144,-151.0,0.00053414,120]
[319524964,1710827444153,-420.14889,0.00053414,120]
[319524965,1710827444164,-420.14889,0.00053414,120]
[319524966,1710827444173,-151.0,0.00053414,120]
[319524967,1710827444182,-298.140121,0.00053414,120]
[319524968,1710827444192,-298.140121,0.00053414,120]
[319524969,1710827444204,-151.0,0.00053414,120]
[319524970,1710827444213,-151.031913,0.00053448,71]
[319524971,1710827444223,-150.0,0.00053457,7]
[319524972,1710827444234,-150.0,0.00053496,7]
[319524973,1710827444243,-150.0,0.00053514,7]
[319524974,1710827444253,-2473.23494621,0.0005353,2]
[319524975,1710827444263,-203.91313483,0.0005353,2]
[319524976,1710827444274,-151.031913,0.00053548,74]
[319524977,1710827444283,-153.0,0.00053561,120]
[319524978,1710827444293,-8000.0,0.00053585,90]
[319524979,1710827444302,-151.0,0.00053604,120]
[319524980,1710827444312,-151.0,0.00053604,120]
[319524981,1710827444322,-151.0,0.00053604,120]
[319524982,1710827444331,-151.0,0.00053604,120]
[319524983,1710827444340,-151.0,0.00053604,120]
[319524984,1710827444350,-217.97170974,0.00053606,60]
[319524985,1710827444360,-500.0,0.00053628,7]
[319524986,1710827444369,-507.81,0.00053628,7]
[319524987,1710827444379,-151.031913,0.00053648,77]
[319524988,1710827444389,-7500.0,0.00053652,3]
[319524989,1710827444398,-150.0,0.00053676,7]
[319524991,1710827444407,-1500.0,0.00053692,7]
[319524992,1710827444416,-418.16594139,0.00053698,90]
[319524993,1710827444426,-1500.0,0.00053715,7]
[319524994,1710827444435,-1500.0,0.00053724,7]
[319524995,1710827444444,-150.0,0.00053738,7]
[319524996,1710827444458,-151.031913,0.00053748,72]
[319524997,1710827444469,-660.28559961,0.00053795,7]
[319524998,1710827444478,-150.0,0.00053797,7]
[319524999,1710827444488,-150.0,0.00053798,7]
[319525000,1710827444497,-150.0,0.00053805,7]
[319525001,1710827444506,-150.0,0.00053806,7]
[319525002,1710827444514,-1500.0,0.00053822,7]
[319525003,1710827444523,-1500.0,0.00053823,7]
[319525004,1710827444532,-1500.0,0.00053839,7]
[319525005,1710827444542,-151.031913,0.00053848,75]
[319525006,1710827444552,-150.0,0.00053877,7]
[319525007,1710827444561,-5300.0,0.0005388,11]
[319525008,1710827444570,-5300.0,0.0005388,12]
[319525009,1710827444579,-5300.0,0.0005388,13]
[319525010,1710827444589,-150.94,0.0005389,120]
[319525011,1710827444598,-150.0,0.00053894,7]
[319525012,1710827444607,-472.0,0.000539,32]
[319525013,1710827444617,-37267.95867703,0.000539,45]
[319525014,1710827444626,-1000.0,0.000539,19]
[319525015,1710827444635,-926.05735562,0.000539,120]
[319525016,1710827444645,-926.05735562,0.000539,120]
[319525017,1710827444654,-926.05735562,0.000539,120]
[319525018,1710827444663,-926.05735562,0.000539,120]
[319525019,1710827444673,-926.05735562,0.000539,120]
[319525020,1710827444682,-926.05735562,0.000539,120]
[319525021,1710827444691,-926.05735562,0.000539,120]
[319525022,1710827444703,-926.05735562,0.000539,120]
[319525023,1710827444712,-926.05735562,0.000539,120]
[319525024,1710827444721,-926.05735562,0.000539,120]
[319525025,1710827444730,-926.05735562,0.000539,120]
[319525026,1710827444739,-926.05735562,0.000539,120]
[319525027,1710827444750,-926.05735562,0.000539,120]
[319525028,1710827444760,-926.05735562,0.000539,120]
[319525029,1710827444770,-926.05735562,0.000539,120]
[319525030,1710827444779,-926.05735562,0.000539,120]
[319525031,1710827444790,-926.05735562,0.000539,120]
[319525032,1710827444799,-926.05735562,0.000539,120]
[319525033,1710827444808,-926.05735562,0.000539,120]
[319525034,1710827444818,-150.0,0.00053911,7]
[319525035,1710827444829,-150.0,0.00053932,7]
[319525036,1710827444838,-699.23265155,0.00053943,7]
[319525037,1710827444850,-151.031913,0.00053948,77]
[319525038,1710827444859,-153.0,0.00053972,120]
[319525039,1710827444869,-1500.0,0.00053972,7]
[319525040,1710827444879,-150.94,0.0005399,120]
[319525041,1710827444889,-150.94,0.0005399,120]
[319525042,1710827444899,-573021.34863463,0.00053995,7]
[319525043,1710827444910,-8608.99376295,0.00053999,14]
[319525044,1710827444921,-845.81697332,0.00053999,4]
[319525045,1710827444931,-348.07565625,0.00053999,90]
[319525046,1710827444941,-41699.82207783,0.00054,120]
[319525047,1710827444954,-36291.67062608,0.00054,120]
[319525048,1710827444964,-548.0,0.00054,120]
[319525049,1710827444974,-20981.38847126,0.00054,120]
[319525050,1710827444984,-200.0,0.00054,54]
[319525051,1710827444994,-400.0,0.00054,120]
[319525052,1710827445004,-118404.06696752,0.00054,120]
[319525053,1710827445014,-200000.0,0.00054,30]
[319525054,1710827445024,-151.0,0.00054,120]
[319525055,1710827445034,-151.0,0.00054,120]
[319525056,1710827445045,-237.374303,0.00054,120]
[319525057,1710827445055,-151.0,0.00054,120]
[319525058,1710827445066,-151.0,0.00054,120]
[319525059,1710827445076,-151.0,0.00054,120]
[319525060,1710827445088,-151.0,0.00054,120]
[319525061,1710827445098,-420.14889,0.00054,120]
[319525062,1710827445109,-420.14889,0.00054,120]
[319525063,1710827445119,-420.14889,0.00054,120]
[319525064,1710827445129,-420.14889,0.00054,120]
[319525065,1710827445139,-151.0,0.00054,120]
[319525066,1710827445148,-151.0,0.00054,120]
[319525067,1710827445158,-298.140121,0.00054,120]
[319525068,1710827445169,-298.140121,0.00054,120]
[319525069,1710827445179,-298.140121,0.00054,120]
[319525070,1710827445190,-298.140121,0.00054,120]
[319525071,1710827445199,-151.0,0.00054,120]
[319525072,1710827445212,-154.744703,0.00054,120]
[319525073,1710827445221,-151.0,0.00054,120]
[319525074,1710827445231,-162.071551,0.00054,120]
[319525075,1710827445242,-151.0,0.00054,120]
[319525076,1710827445253,-151.0,0.00054,120]
[319525077,1710827445264,-151.0,0.00054,120]
[319525078,1710827445276,-151.0,0.00054,120]
[319525079,1710827445288,-151.0,0.00054,120]
[319525080,1710827445299,-151.0,0.00054,30]
[319525081,1710827445310,-151.0,0.00054,30]
[319525082,1710827445321,-151.0,0.00054,120]
[319525083,1710827445332,-151.0,0.00054,120]
[319525084,1710827445343,-151.0,0.00054,120]
[319525085,1710827445354,-151.0,0.00054,120]
[319525086,1710827445365,-151.0,0.00054,120]
[319525087,1710827445376,-151.0,0.00054,120]
[319525088,1710827445386,-151.0,0.00054,120]
[319525089,1710827445397,-194.008448,0.00054,120]
[319525090,1710827445406,-1086.575255,0.00054,120]
[319525091,1710827445416,-1086.575255,0.00054,120]
[319525092,1710827445425,-1086.575255,0.00054,120]
[319525093,1710827445435,-1086.575255,0.00054,120]
[319525094,1710827445446,-191.877165,0.00054,120]
[319525095,1710827445462,-351.0,0.00054043,28]
[319525096,1710827445471,-151.031913,0.00054098,66]
[319525097,1710827445482,-348.07565625,0.00054142,90]
[319525098,1710827445493,-151.031913,0.00054198,64]
[319525099,1710827445504,-200000.0,0.000542,120]
[319525100,1710827445515,-151.0,0.000542,120]
[319525101,1710827445525,-200.444502,0.000542,120]
[319525102,1710827445534,-420.14889,0.000542,120]
[319525103,1710827445544,-420.14889,0.000542,120]
[319525104,1710827445555,-151.0,0.000542,120]
[319525105,1710827445566,-298.140121,0.000542,120]
[319525106,1710827445575,-298.140121,0.000542,120]
[319525107,1710827445587,-151.0,0.000542,120]
[319525108,1710827445598,-151.0,0.000542,120]
[319525109,1710827445609,-151.0,0.000542,30]
[319525110,1710827445620,-151.0,0.000542,120]
[319525111,1710827445630,-165.91109,0.000542,120]
[319525112,1710827445643,-151.0,0.000542,120]
[319525113,1710827445654,-1086.575255,0.000542,120]
[319525114,1710827445665,-1086.575255,0.000542,120]
[319525115,1710827445676,-151.031913,0.00054298,66]
[319525116,1710827445688,-153.0,0.00054383,120]
[319525117,1710827445699,-151.031913,0.00054398,65]
[319525118,1710827445712,-500.0,0.00054414,30]
[319525119,1710827445723,-500.0,0.00054414,30]
[319525120,1710827445734,-500.0,0.00054414,30]
[319525121,1710827445746,-500.0,0.00054414,30]
[319525122,1710827445761,-500.0,0.00054414,30]
[319525123,1710827445772,-500.0,0.00054414,40]
[319525124,1710827445783,-3364.79,0.00054423,117]
[319525125,1710827445795,-151.031913,0.00054498,64]
[319525126,1710827445804,-477.0,0.000545,43]
[319525127,1710827445814,-224.1,0.000545,120]
[319525128,1710827445825,-5000.0,0.000545,120]
[319525129,1710827445835,-260.0,0.000545,43]
[319525130,1710827445844,-5300.0,0.000545,27]
[319525131,1710827445854,-5300.0,0.000545,28]
[319525132,1710827445864,-5300.0,0.000545,29]
[319525133,1710827445874,-5300.0,0.000545,30]
[319525134,1710827445883,-348.07565624,0.00054526,90]
[319525135,1710827445893,-384.04545839,0.00054526,2]
[319525136,1710827445903,-99277.821788,0.00054527,120]
[319525137,1710827445912,-200.0,0.00054529,2]
[319525138,1710827445922,-2047.45907,0.00054594,30]
[319525140,1710827445932,-1400.0,0.000546,19]
[319525142,1710827445942,-500.0,0.00054606,60]
[319525144,1710827445954,-369.40616902,0.00054626,4]
[319525146,1710827445964,-1016.53597494,0.00054626,5]
[319525148,1710827445973,-494.89274918,0.00054627,10]
[319525150,1710827445983,-178.05391174,0.0005463,120]
[319525152,1710827445993,-47346.63430163,0.00054636,30]
[319525154,1710827446003,-1135.20621102,0.00054656,2]
[319525156,1710827446012,-2210.12674618,0.00054656,30]
[319525158,1710827446022,-925.72155825,0.00054656,120]
[319525160,1710827446032,-5076.69333455,0.00054656,2]
[319525162,1710827446042,-151.0,0.0005469,120]
[319525164,1710827446051,-926.05735562,0.00054694,120]
[319525165,1710827446061,-1800.0,0.000547,19]
[319525166,1710827446070,-420.14889,0.00054755,120]
[319525168,1710827446081,-420.14889,0.00054755,120]
[319525170,1710827446091,-165.894704,0.00054755,120]
[319525172,1710827446101,-298.140121,0.00054755,120]
[319525174,1710827446112,-298.140121,0.00054755,120]
[319525177,1710827446122,-151.0,0.00054756,120]
[319525180,1710827446132,-7865.3626522,0.00054756,2]
[319525183,1710827446143,-151.0,0.00054756,120]
[319525185,1710827446153,-151.0,0.00054756,120]
[319525187,1710827446163,-151.0,0.00054756,120]
[319525190,1710827446174,-4658.36674,0.00054756,2]
[319525192,1710827446186,-151.0,0.00054756,120]
[319525194,1710827446197,-151.0,0.00054756,30]
[319525195,1710827446214,-151.0,0.00054756,30]
[319525198,1710827446224,-255.9010095,0.00054756,2]
[319525200,1710827446236,-151.0,0.00054756,120]
[319525202,1710827446248,-1427.5011791,0.00054756,2]
[319525204,1710827446259,-151.0,0.00054756,120]
[319525205,1710827446270,-1086.575255,0.00054756,120]
[319525208,1710827446280,-1086.575255,0.00054756,120]
[319525210,1710827446290,-714.0858072,0.00054756,2]
[319525212,1710827446300,-6267.2273224,0.00054756,2]
[319525213,1710827446311,-193923.6803222,0.00054756,2]
[319525216,1710827446322,-2500.0,0.0005479,120]
[319525217,1710827446334,-75000.0,0.0005479,15]
[319525220,1710827446345,-420.14889,0.0005479,120]
[319525222,1710827446356,-420.14889,0.0005479,120]
[319525224,1710827446366,-298.140121,0.0005479,120]
[319525225,1710827446377,-298.140121,0.0005479,120]
[319525227,1710827446388,-1086.575255,0.0005479,120]
[319525229,1710827446399,-1086.575255,0.0005479,120]
[319525231,1710827446410,-155.1809351,0.00054792,4]
[319525233,1710827446421,-166.0502098,0.00054792,4]
[319525236,1710827446432,-155.0,0.00054792,20]
[319525238,1710827446442,-18276.93106291,0.00054792,30]
[319525240,1710827446457,-3990.60244936,0.00054792,4]
[319525242,1710827446468,-1061.69842385,0.00054793,2]
[319525243,1710827446478,-155.30115519,0.00054793,4]
[319525245,1710827446487,-2000.0,0.00054794,120]
[319525246,1710827446497,-2000.0,0.00054794,120]
[319525247,1710827446507,-2000.0,0.00054794,120]
[319525248,1710827446517,-2000.0,0.00054794,120]
[319525249,1710827446527,-2000.0,0.00054794,120]
[319525250,1710827446537,-2000.0,0.00054794,120]
[319525251,1710827446546,-2000.0,0.00054794,120]
[319525252,1710827446556,-2000.0,0.00054794,120]
[319525253,1710827446565,-2000.0,0.00054794,120]
[319525254,1710827446575,-2000.0,0.00054794,120]
[319525255,1710827446585,-2000.0,0.00054794,120]
[319525256,1710827446595,-2000.0,0.00054794,120]
[319525257,1710827446604,-2000.0,0.00054794,120]
[319525259,1710827446614,-2000.0,0.00054794,120]
[319525261,1710827446624,-2000.0,0.00054794,120]
[319525263,1710827446633,-537.3278078,0.00054794,120]
[319525265,1710827446643,-2000.0,0.00054794,120]
[319525267,1710827446653,-1000.0,0.00054794,120]
[319525268,1710827446662,-423.29049779,0.00054794,120]
[319525270,1710827446672,-2000.0,0.00054794,120]
[319525271,1710827446681,-508.45626744,0.00054794,30]
[319525272,1710827446690,-500.0,0.00054794,120]
[319525273,1710827446700,-153.0,0.00054794,120]
[319525274,1710827446715,-500.0,0.00054794,120]
[319525275,1710827446725,-423.67296482,0.00054794,120]
[319525276,1710827446734,-500.0,0.00054794,120]
[319525277,1710827446744,-500.0,0.00054794,120]
[319525278,1710827446755,-500.0,0.00054794,120]
[319525279,1710827446765,-500.0,0.00054794,120]
[319525280,1710827446775,-501.18534977,0.00054794,120]
[319525281,1710827446785,-500.0,0.00054794,120]
[319525282,1710827446797,-500.0,0.00054794,120]
[319525283,1710827446806,-610.11117675,0.00054794,120]
[319525284,1710827446816,-500.0,0.00054794,120]
[319525285,1710827446828,-538.23243604,0.00054794,120]
[319525286,1710827446838,-500.0,0.00054794,120]
[319525287,1710827446848,-500.0,0.00054794,120]
[319525288,1710827446857,-501.44539711,0.00054794,120]
[319525289,1710827446867,-500.0,0.00054794,120]
[319525290,1710827446876,-500.0,0.00054794,120]
[319525291,1710827446886,-500.0,0.00054794,120]
[319525292,1710827446895,-443.97757677,0.00054794,120]
[319525293,1710827446905,-500.0,0.00054794,120]
[319525294,1710827446915,-500.0,0.00054794,120]
[319525295,1710827446926,-509.74629579,0.00054794,120]
[319525296,1710827446936,-500.0,0.00054794,120]
[319525297,1710827446946,-500.0,0.00054794,120]
[319525298,1710827446959,-500.0,0.00054794,120]
[319525299,1710827446969,-500.0,0.00054794,120]
[319525300,1710827446979,-500.0,0.00054794,120]
[319525301,1710827446989,-500.0,0.00054794,120]
[319525302,1710827446998,-200.0,0.00054794,120]
[319525303,1710827447008,-500.0,0.00054794,120]
[319525304,1710827447018,-501.84158679,0.00054794,120]
[319525305,1710827447028,-500.0,0.00054794,120]
[319525306,1710827447038,-500.0,0.00054794,120]
[319525307,1710827447048,-501.61308051,0.00054794,120]
[319525308,1710827447068,-500.0,0.00054794,120]
[319525309,1710827447081,-500.0,0.00054794,120]
[319525310,1710827447093,-500.0,0.00054794,120]
[319525311,1710827447104,-500.0,0.00054794,120]
[319525312,1710827447116,-500.0,0.00054794,120]
[319525313,1710827447128,-500.0,0.00054794,120]
[319525314,1710827447450,-500.0,0.00054794,120]
[319525315,1710827447463,-500.0,0.00054794,120]
[319525316,1710827447473,-500.0,0.00054794,120]
[319525317,1710827447482,-500.0,0.00054794,120]
[319525318,1710827447492,-863.61,0.00054794,120]
[319525319,1710827447502,-318.57528623,0.00054794,2]
[319525320,1710827447511,-500.0,0.00054794,120]
[319525321,1710827447520,-500.0,0.00054794,120]
[319525322,1710827447529,-500.0,0.00054794,120]
[319525323,1710827447539,-500.0,0.00054794,120]
[319525324,1710827447548,-506.26,0.00054794,120]
[319525325,1710827447557,-500.0,0.00054794,120]
[319525326,1710827447566,-500.0,0.00054794,120]
[319525327,1710827447576,-500.0,0.00054794,120]
[319525328,1710827447585,-500.0,0.00054794,120]
[319525329,1710827447595,-500.0,0.00054794,120]
[319525330,1710827447605,-500.0,0.00054794,120]
[319525331,1710827447614,-500.0,0.00054794,120]
[319525332,1710827447624,-500.0,0.00054794,120]
[319525333,1710827447633,-500.0,0.00054794,120]
[319525334,1710827447642,-500.0,0.00054794,120]
[319525335,1710827447651,-500.0,0.00054794,120]
[319525336,1710827447661,-514.03835708,0.00054794,120]
[319525337,1710827447674,-500.0,0.00054794,120]
[319525338,1710827447683,-500.0,0.00054794,120]
[319525339,1710827447693,-500.0,0.00054794,120]
[319525340,1710827447706,-500.0,0.00054794,120]
[319525341,1710827447716,-500.0,0.00054794,120]
[319525342,1710827447726,-500.0,0.00054794,120]
[319525343,1710827447735,-500.0,0.00054794,120]
[319525344,1710827447745,-781.12,0.00054794,120]
[319525345,1710827447759,-500.0,0.00054794,120]
[319525346,1710827447769,-500.0,0.00054794,120]
[319525347,1710827447778,-682.86,0.00054794,120]
[319525348,1710827447788,-1079.96,0.00054794,120]
[319525349,1710827447799,-500.0,0.00054794,120]
[319525350,1710827447808,-500.0,0.00054794,120]
[319525351,1710827447818,-500.0,0.00054794,120]
[319525352,1710827447830,-500.0,0.00054794,120]
[319525353,1710827447840,-500.0,0.00054794,120]
[319525354,1710827447850,-500.28156976,0.00054794,120]
[319525355,1710827447860,-216.81044198,0.00054794,120]
[319525356,1710827447869,-500.0,0.00054794,120]
[319525357,1710827447878,-500.0,0.00054794,120]
[319525358,1710827447888,-500.0,0.00054794,120]
[319525359,1710827447898,-500.0,0.00054794,120]
[319525360,1710827447907,-500.0,0.00054794,120]
[319525361,1710827447918,-500.0,0.00054794,120]
[319525362,1710827447927,-500.0,0.00054794,120]
[319525363,1710827447937,-594.77661561,0.00054794,120]
[319525364,1710827447946,-1218.62,0.00054794,120]
[319525365,1710827447960,-500.0,0.00054794,120]
[319525366,1710827447969,-500.0,0.00054794,120]
[319525367,1710827447979,-500.0,0.00054794,120]
[319525368,1710827447990,-500.0,0.00054794,120]
[319525369,1710827447999,-605.79,0.00054794,120]
[319525370,1710827448009,-500.0,0.00054794,120]
[319525371,1710827448019,-801.78,0.00054794,120]
[319525372,1710827448029,-500.0,0.00054794,120]
[319525373,1710827448039,-500.0,0.00054794,120]
[319525374,1710827448049,-644.78,0.00054794,120]
[319525375,1710827448058,-503.73203034,0.00054794,120]
[319525376,1710827448068,-1045.71,0.00054794,120]
[319525377,1710827448077,-500.0,0.00054794,120]
[319525378,1710827448087,-699.23,0.00054794,120]
[319525379,1710827448098,-228.31005346,0.00054794,120]
[319525380,1710827448108,-500.0,0.00054794,120]
[319525381,1710827448118,-500.0,0.00054794,120]
[319525382,1710827448129,-439.52506834,0.00054794,120]
[319525383,1710827448139,-533.66,0.00054794,120]
[319525384,1710827448149,-500.0,0.00054794,120]
[319525385,1710827448158,-500.0,0.00054794,120]
[319525386,1710827448168,-500.0,0.00054794,120]
[319525387,1710827448178,-558.4794493,0.00054794,120]
[319525388,1710827448188,-500.0,0.00054794,120]
[319525389,1710827448198,-500.0,0.00054794,120]
[319525390,1710827448210,-749.29,0.00054794,120]
[319525391,1710827448219,-1081.0,0.00054794,120]
[319525392,1710827448229,-796.97,0.00054794,120]
[319525393,1710827448238,-557.5,0.00054794,120]
[319525394,1710827448248,-500.0,0.00054794,120]
[319525395,1710827448258,-500.0,0.00054794,120]
[319525396,1710827448267,-500.0,0.00054794,120]
[319525397,1710827448277,-500.0,0.00054794,120]
[319525398,1710827448286,-500.0,0.00054794,120]
[319525399,1710827448296,-500.0,0.00054794,120]
[319525400,1710827448306,-501.96895589,0.00054794,120]
[319525401,1710827448315,-1141.1,0.00054794,120]
[319525402,1710827448325,-503.69796559,0.00054794,120]
[319525403,1710827448335,-536.3,0.00054794,120]
[319525404,1710827448344,-500.0,0.00054794,120]
[319525405,1710827448355,-500.0,0.00054794,120]
[319525406,1710827448364,-500.0,0.00054794,120]
[319525407,1710827448374,-500.0,0.00054794,120]
[319525408,1710827448383,-500.0,0.00054794,120]
[319525409,1710827448393,-500.0,0.00054794,120]
[319525410,1710827448403,-500.0,0.00054794,120]
[319525411,1710827448414,-500.0,0.00054794,120]
[319525412,1710827448424,-499.18062895,0.00054794,120]
[319525413,1710827448434,-500.0,0.00054794,120]
[319525414,1710827448445,-500.0,0.00054794,120]
[319525415,1710827448459,-501.5711328,0.00054794,120]
[319525416,1710827448469,-500.0,0.00054794,120]
[319525417,1710827448478,-500.0,0.00054794,120]
[319525418,1710827448489,-864.62,0.00054794,120]
[319525419,1710827448498,-614.04,0.00054794,120]
[319525420,1710827448508,-501.24108034,0.00054794,120]
[319525421,1710827448517,-699.92,0.00054794,120]
[319525422,1710827448527,-500.0,0.00054794,120]
[319525423,1710827448537,-500.0,0.00054794,120]
[319525424,1710827448546,-1727.86,0.00054794,120]
[319525425,1710827448557,-500.0,0.00054794,120]
[319525426,1710827448567,-500.0,0.00054794,120]
[319525427,1710827448577,-583.92,0.00054794,120]